Cogmind - Beta 12 @@@ ROGUE MODE // 2023.03.16 @ 18:58:21 Player: ArabianSandBoa Result: Destroyed by 8R-AWN with 8R-AWN's Boregun Performance ------------- Evolutions (0) 0 Regions Visited (3) 600 Robots Destroyed (38) 190 Value Destroyed (694) 694 Prototype IDs (37) 740 Alien Tech Used (0) 0 Bonus (290) 290 TOTAL SCORE: 2514 Bonus ------- Follower Combat Kills 32 Aligned with FarCom 300 Friendly Fire -42 Cogmind --------- Core Integrity 0/250 Matter 254/300 Energy 90/100 System Corruption 0% Temperature Cool (0) Movement Treading (480) Ox4 Location -10/Exiles Parts ------- > --- POWER (1) -------- (None) > --- PROPULSION (2) --- Light Treads > --- UTILITY (2) ------ Huge Storage Unit > --- WEAPON (2) ------- Longsword +1 > --- INVENTORY (25) --- Light Treads Compact Wheel Compact Wheel Targeting Computer Core Shielding Weapon Shielding Hacking Suite Authchip [Storage] Supersonic Drone Bay (1/1) Army-in-a-Box (30/30) Beamcaster Light EM Pulse Cannon Light EM Pulse Cannon Assault Rifle Datajack Hammer Signal Generator Peak State ------------ > --- POWER ------------ Light Angular Momentum Engine > --- PROPULSION ------- Compact Wheel Compact Wheel > --- UTILITY ---------- Huge Storage Unit Light Armor Plating > --- WEAPON ----------- Heavy Assault Rifle Longsword +1 > --- INVENTORY -------- Light Treads Light Treads Light Treads Targeting Computer Core Shielding Weapon Shielding Hacking Suite Authchip [Storage] Supersonic Drone Bay Army-in-a-Box Beamcaster Light EM Pulse Cannon Light EM Pulse Cannon Assault Rifle Datajack Hammer Signal Generator [Rating: 28] Favorites ----------- Power Ion Engine Engine Ion Engine Propulsion Compact Wheel Treads Light Treads Leg Aluminum Leg Wheel Compact Wheel Utility Huge Storage Unit Device Heat Sink Storage Huge Storage Unit Protection Light Armor Plating Weapon Light EM Pulse Cannon Energy Gun Improved Medium Laser Energy Cannon Light EM Pulse Cannon Ballistic Gun Heavy Assault Rifle Impact Weapon Hammer Slashing Weapon Longsword +1 Special Melee Weapon Datajack Build | -11 -10 -10 -10 ------- Run | Jun Mat Min Exi Slots Evolved . | . . . . Power . | . . . . Propulsion . | . . . . Utility . | . . . . Weapon . | . . . . Parts Attached 38 | 4 23 5 6 Power 2 | . 1 1 . Engine 2 | . 1 1 . Core . | . . . . Reactor . | . . . . Propulsion 12 | 2 7 . 3 Treads 6 | 2 2 . 2 Leg . | . . . . Wheel 6 | . 5 . 1 Hover . | . . . . Flight . | . . . . Utility 8 | 1 5 1 1 Device 3 | 1 1 1 . Storage 2 | . 2 . . Processor . | . . . . Hackware . | . . . . Protection 3 | . 2 . 1 Artifact . | . . . . Weapon 16 | 1 10 3 2 Energy Gun 6 | 1 5 . . Energy Cannon 4 | . 3 1 . Ballistic Gun 3 | . 1 2 . Ballistic Cannon . | . . . . Launcher . | . . . . Special Weapon . | . . . . Impact Weapon 1 | . 1 . . Slashing Weapon 1 | . . . 1 Piercing Weapon . | . . . . Special Melee Weapon 1 | . . . 1 Unidentified Prototypes 1 | . 1 . . Parts Lost 9 | . 3 2 4 Power 1 | . . . 1 Propulsion 2 | . 1 . 1 Utility 3 | . 1 1 1 Weapon 3 | . 1 1 1 Highest Loss Streak 4 | . 1 2 4 To Critical Strikes 2 | . . . 2 Average Slot Usage (%) 96 | . 98 92 98 Engine 13 | . 14 14 13 Treads 4 | . 7 . 3 Wheel 22 | . 19 28 23 Device 4 | . 5 3 . Storage 14 | . 14 14 14 Protection 7 | . 8 2 13 Energy Gun 8 | . 15 . . Energy Cannon 10 | . 10 14 . Ballistic Gun 7 | . 1 14 16 Special Melee Weapon 1 | . . . 9 Naked Turns . | . . . . Heaviest Build 98 | 15 96 98 98 Greatest Support 40 | 40 40 32 40 Greatest Overweight (x) 5 | . 5 3 3 Average Overweight (x) 2 | . 1 2 2 Largest Inventory Capacity 25 | 8 25 25 25 Average Capacity 23 | 8 22 25 25 Most Carried 25 | 6 25 25 25 Average Carried 18 | 2 14 22 24 Final Capacity 25 | 8 25 25 25 Final Carried 25 | 2 19 25 22 Class Distribution -------------------- 89% | Mutant 10% | Scavenger-Mutant Dominant Class ---------------- Mutant | -10/Materials Mutant | -10/Mines Mutant | -10/Exiles Resources | -11 -10 -10 -10 ----------- Run | Jun Mat Min Exi Matter Collected 531 | 240 235 56 . Remotely . | . . . . Salvage Created 1167 | 122 800 245 . Parts 71 | 2 58 11 . Haulers Intercepted 2 | . 2 . . Recyclers Shooed 2 | 1 1 . . Parts Field Recycled . | . . . . Retrieved Matter . | . . . . Parts Self-Destructed . | . . . . Prevented . | . . . . Kills | -11 -10 -10 -10 ------- Run | Jun Mat Min Exi Combat Hostiles Destroyed 25 | . 17 8 . Guns 15 | . 15 . . Cannons 7 | . 2 5 . AOE 2 | . . 2 . Classes Destroyed 9 | 2 6 1 . Worker 2 | . 2 . . Tunneler 2 | 1 1 . . Hauler 2 | . 2 . . Recycler 2 | 1 1 . . Operator 2 | . 2 . . Watcher 3 | . 3 . . Swarmer 13 | . 9 4 . Grunt 11 | . 8 3 . Sentry 1 | . . 1 . Best Kill Streak 6 | 2 6 3 . Combat Bots Only 6 | . 6 3 . Max Kills in Single Turn 2 | 2 2 2 . Gunslinging 1 | . 1 . . Exploded 2 | . . 2 . Melee . | . . . . Uniques/NPCs Destroyed . | . . . . Combat | -11 -10 -10 -10 -------- Run | Jun Mat Min Exi Damage Taken 1460 | . 586 312 562 Core 265 | . 142 54 69 Absorbed by Shields . | . . . . Core Remaining (%) 100 | 100 . . . Volleys Fired 85 | 3 67 13 2 Largest 2 | 2 2 2 1 Hottest 112 | 90 112 112 23 Shots Fired 167 | 6 133 26 2 Gun 121 | 6 111 2 2 Cannon 46 | . 22 24 . Launcher . | . . . . Special . | . . . . Kinetic 19 | . 15 2 2 Thermal 92 | 3 89 . . Explosive . | . . . . Electromagnetic 56 | 3 29 24 . Robot Hit Streak 9 | 3 9 8 . Robot Miss Streak 7 | . 7 4 1 Penetration Max . | . . . . Secondary Targets 3 | . 3 . . Max Gunslinging Chain 1 | . 1 . . Shots Hit Robots 112 | 3 77 15 17 Core Hits 47 | 3 34 7 3 Critical Kills . | . . . . Critical Parts Destroyed . | . . . . Critical Strikes 10 | 2 7 . 1 Burn 7 | 2 5 . . Corrupt 2 | . 2 . . Sever 1 | . . . 1 Melee Attacks 18 | . 1 . 17 Impact 1 | . 1 . . Slashing 14 | . . . 14 Piercing . | . . . . Sneak Attacks 3 | . . . 3 Combat Hostiles . | . . . . Follow-up Attacks . | . . . . Damage Inflicted 2498 | 52 1245 540 661 Guns 970 | 52 904 . 14 Cannons 652 | . 307 345 . Explosions 229 | . 34 195 . Melee 647 | . . . 647 Ramming . | . . . . Kinetic 52 | . 38 . 14 Thermal 1093 | 25 873 195 . Explosive . | . . . . Electromagnetic 706 | 27 334 345 . Impact . | . . . . Slashing 647 | . . . 647 Piercing . | . . . . Highest Corruption . | . . . . Average Corruption . | . . . . Corruption Purged . | . . . . Corruption Blocked . | . . . . Overload Shots . | . . . . Overflow Damage 18 | . 1 17 . Projectiles 1 | . 1 . . Explosions 17 | . . 17 . Melee . | . . . . Knockbacks . | . . . . Impact . | . . . . Kinetic . | . . . . Secondary . | . . . . Self-Inflicted Damage 83 | . 13 70 . Shots 3 | . 1 2 . Rammed . | . . . . Targets Rammed . | . . . . Kicked . | . . . . Crushed . | . . . . Highest Temperature 308 | 60 308 274 . Average Temperature 79 | 28 75 103 . Received Heat Transfer 315 | . 216 99 . Siege Activations . | . . . . Robots Corrupted 1 | . . 1 . Combat Hostiles 1 | . . 1 . Parts Fried 2 | . 1 1 . Impact Corruptions . | . . . . Robots Melted . | . . . . Combat Hostiles . | . . . . Parts Melted 6 | 2 3 1 . Heat Transferred 2940 | 222 2418 300 . Parts Sabotaged . | . . . . Parts Stolen . | . . . . Parts Stripped . | . . . . Power Chain Reactions 3 | . 1 2 . Missiles Intercepted . | . . . . Alert | -11 -10 -10 -10 ------- Run | Jun Mat Min Exi Peak Influence 274 | 10 274 233 . Initial 29 | . 6 29 . Average 112 | 7 124 97 . Maximum Alert Level 1 | . 1 1 . Low Security (%) 82 | 100 83 79 . Level 1 17 | . 16 20 . Level 2 . | . . . . Level 3 . | . . . . Level 4 . | . . . . Level 5 . | . . . . High Security . | . . . . Max Security . | . . . . Squads Dispatched 6 | . 5 1 . Investigation 2 | . 2 . . Extermination . | . . . . Reinforcement 3 | . 3 . . Assault 1 | . . 1 . Garrison . | . . . . Intercept . | . . . . Searches Triggered . | . . . . Construction Impeded . | . . . . Haulers Reinforced . | . . . . Active Scanning Responses . | . . . . Cargo Convoy Interrupts . | . . . . Stealth | -11 -10 -10 -10 --------- Run | Jun Mat Min Exi Distress Signals . | . . . . Communications Jammed . | . . . . Distress Signals . | . . . . Times Spotted 39 | . 26 12 1 Peak Tracking Total 6 | . 6 4 5 Tactical Retreats . | . . . . Traps | -11 -10 -10 -10 ------- Run | Jun Mat Min Exi Traps Triggered 2 | . 2 . . Indirectly . | . . . . Trap Hack Attempts . | . . . . Triggered . | . . . . Disarmed . | . . . . Reprogrammed . | . . . . Reused . | . . . . Traps Extracted . | . . . . Installed . | . . . . Triggered . | . . . . Machines | -11 -10 -10 -10 ---------- Run | Jun Mat Min Exi Machines Disabled 3 | . 1 1 1 Max in Single Turn 1 | . 1 1 1 Machines Repaired . | . . . . Machines Sabotaged . | . . . . Overloaded Fab Kills . | . . . . Hacking | -11 -10 -10 -10 --------- Run | Jun Mat Min Exi Machines Accessed 7 | . 6 . 1 Terminals 4 | . 4 . . Fabricators . | . . . . Repair Stations . | . . . . Recycling Units 2 | . 2 . . Scanalyzers . | . . . . Garrison Access . | . . . . Total Hacks 25 | . 24 . 1 Successful 12 | . 11 . 1 Failed 13 | . 13 . . Catastrophic . | . . . . Database Lockouts . | . . . . Manual 19 | . 18 . 1 Terminals 15 | . 15 . . Fabricators . | . . . . Repair Stations . | . . . . Recycling Units 9 | . 9 . . Scanalyzers . | . . . . Garrison Access . | . . . . Terminal Hacks 5 | . 4 . 1 Robot Analysis 2 | . 2 . . Prototype ID Bank 1 | . 1 . . Zone Layout 1 | . 1 . . EX-Prototype ID Bank 1 | . . . 1 Fabricator Hacks . | . . . . Repair Station Hacks . | . . . . Recycling Unit Hacks 3 | . 3 . . Report Inventory 2 | . 2 . . Retrieve Components 1 | . 1 . . Scanalyzer . | . . . . Garrison Access Hacks . | . . . . Unauthorized Hacks 4 | . 4 . . Terminals 3 | . 3 . . Botnet 3 | . 3 . . Fabricators . | . . . . Repair Stations . | . . . . Recycling Units 1 | . 1 . . Reject 1 | . 1 . . Scanalyzers . | . . . . Garrison Access . | . . . . Data Cores Recovered . | . . . . Used . | . . . . Hacking Detections 5 | . 5 . . Full Trace Events 1 | . 1 . . Feedback Events . | . . . . Feedback Blocked . | . . . . Robot Schematics Acquired . | . . . . Robots Built . | . . . . Authchips . | . . . . Time . | . . . . Total Robot Build Rating . | . . . . Part Schematics Acquired . | . . . . Parts Built . | . . . . Authchips . | . . . . Time . | . . . . Total Part Build Rating . | . . . . Parts Repaired . | . . . . Time . | . . . . Parts Recycled . | . . . . Recycled Matter . | . . . . Retrieved Matter . | . . . . Retrieved Components 10 | . 10 . . Parts Scanalyzed . | . . . . Part Schematics Acquired . | . . . . Parts Damaged . | . . . . Bothacking | -11 -10 -10 -10 ------------ Run | Jun Mat Min Exi Used RIF Installer . | . . . . Robots Hacked 3 | . . . 3 Non-combat 2 | . . . 2 Combat 1 | . . . 1 Robot Hacks Applied 3 | . . . 3 parse_system 3 | . . . 3 Relay Couplers Released . | . . . . Fabnet Peak Effective % . | . . . . Robots Rewired . | . . . . Allies Hacked . | . . . . Hacks Repelled . | . . . . Allies | -11 -10 -10 -10 -------- Run | Jun Mat Min Exi Total Allies 2 | . . 2 . Largest Group 1 | . . 1 1 Highest-Rated Group 31 | . . 31 31 Highest-Rated Ally 31 | . . 31 31 Total Orders . | . . . . Ally Attacks 5 | . . 5 . Total Damage 62 | . . 62 . Kills 2 | . . 2 . Allies Corrupted . | . . . . Allies Melted . | . . . . Intel | -11 -10 -10 -10 ------- Run | Jun Mat Min Exi Robot Analysis Total 2 | . 2 . . Derelict Logs Recovered 1 | . . 1 . Drone Launches . | . . . . Drone Recoveries . | . . . . Exploration | -11 -10 -10 -10 ------------- Run | Jun Mat Min Exi Turns Passed 2845 | 35 1460 947 403 Spaces Moved 1526 | 12 654 624 236 Core . | . . . . Treads 154 | 12 135 . 7 Legs . | . . . . Wheels 1372 | . 519 624 229 Hover . | . . . . Flight . | . . . . Fastest Speed 110 | 160 110 130 130 Average Speed 141 | 160 148 133 137 Slowest Speed 320 | 160 240 145 320 Overloaded Moves . | . . . . Propulsion Burnouts . | . . . . Robots Hopped . | . . . . Cave-ins Triggered . | . . . . Exploration Rate (%) 63 | 2 96 99 58 Regions Visited 3 Branch Regions 2 Pre-discovered Areas 1 | . . 1 . Known Exits Taken . | . . . . Unknown Exits Taken 3 | 1 1 1 . Scrap Searched 1 | . . 1 . Spaces Dug . | . . . . Terrain Destroyed 29 | . 6 23 . Melee . | . . . . Projectile . | . . . . AOE 29 | . 6 23 . Terrain Rammed . | . . . . Walls Destroyed . | . . . . Machines Disabled . | . . . . Actions | -11 -10 -10 -10 --------- Run | Jun Mat Min Exi Total 2047 | 23 1011 711 302 Wait 276 | . 204 52 20 Move 1523 | 11 653 623 236 Hop . | . . . . Pick Up 57 | 1 37 12 7 Fast Attach 5 | . 4 1 . Attach 9 | 3 3 2 1 Detach 2 | . 2 . . Swap 24 | 1 16 2 5 Drop 48 | 4 24 6 14 Fire 85 | 3 67 13 2 Melee 18 | . 1 . 17 Ram . | . . . . Kick . | . . . . Crush . | . . . . Escape Stasis . | . . . . Rewire . | . . . . Trap . | . . . . Miscellaneous . | . . . . Route ------- -11/Junkyard -10/Materials (discovered 4 exits: [*Mat x3] / [*Min]) -10/Mines (discovered 3 exits: [*Mat x2] / *Exi) -10/Exiles History --------- Turn | Location | Event 13 | -11/Junkyard | Discovered new exit (range 3) 36 | -11/Junkyard | Entered Materials 311 | -10/Materials | Build established: Mutant 365 | -10/Materials | Discovered new exit (range 14) 723 | -10/Materials | Build established: Scavenger-Mutant 813 | -10/Materials | Core integrity fell below 50% 827 | -10/Materials | Discovered new exit (range 4) 950 | -10/Materials | Discovered new exit (range 15) 1049 | -10/Materials | Build established: Mutant 1188 | -10/Materials | Discovered new exit (range 16) 1496 | -10/Materials | Entered Mines 1583 | -10/Mines | Met a Derelict testing a Signal Generator 1587 | -10/Mines | Learned location of Mines (-9) 1596 | -10/Mines | Found Signal Generator 1628 | -10/Mines | Discovered new exit (range 6) 1641 | -10/Mines | Deemed a non-threat by the Exiles lab entrance 1641 | -10/Mines | Discovered new exit (range 5) 1835 | -10/Mines | Discovered new exit (range 6) 1946 | -10/Mines | Joined a pair of Derelicts in attacking an 0b10 outpost 2318 | -10/Mines | Received a Mining Laser from a helpful Derelict 2443 | -10/Mines | Entered Exiles 2443 | -10/Exiles | Accompanied by 1 ally 2487 | -10/Exiles | Met 8R-AWN 2512 | -10/Exiles | Met EX-HEX 2590 | -10/Exiles | Met EX-BIN 2606 | -10/Exiles | Aligned with FarCom system 2607 | -10/Exiles | Given EX-Vault access code 2637 | -10/Exiles | Opened EX-Vault 2649 | -10/Exiles | Found Longsword +1 2657 | -10/Exiles | Found Supersonic Drone Bay 2665 | -10/Exiles | Found Army-in-a-Box 2692 | -10/Exiles | Warned to stay clear of 0b10 Research branches 2699 | -10/Exiles | Exiles lab attacked by MAIN.C 2771 | -10/Exiles | Attacked by the Exiles 2808 | -10/Exiles | Core integrity fell below 20% 2846 | -10/Exiles | Destroyed by 8R-AWN with 8R-AWN's Boregun Last Messages --------------- 02823_ HV Slug penetrates Machine. 02823_ Machine disabled. 02823_ HV Slug penetrates Machine. 02827_ HV Slug penetrates Wall. 02827_ HV Slug penetrates Earth. 02829_ Penetrated by HV Slug. 02832_ Lgt. Angular Momentum Engine destroyed. 02835_ Penetrated by HV Slug. 02835_ Critical hit (Destroy). 02835_ Lgt. Treads destroyed. 02837_ Penetrated by HV Slug. 02837_ Critical hit (Destroy). 02837_ Penetrated by HV Slug. 02839_ Critical hit (Destroy). 02839_ Hvy. Assault Rifle destroyed. 02840_ 8R-AWN 8R-AWN's Boregun severed. 02841_ Penetrated by HV Slug. 02841_ Critical hit (Destroy). 02841_ Lgt. Armor Plating destroyed. 02843_ Penetrated by HV Slug. Map ----- +----------------------------------------------------+ | ?????????????????????????????????????????????????? | | ?????????????????????????????????????????????????? | | ?????????????????????????????????????????????????? | | ?????????????????????????????????????????????????? | | ?????????????????????????????????????????????????? | | ?????????????????????????????????????????????????? | | ?????????????????????????????????????????????????? | | ?????????????????????????????????????????????????? | | ?????????????????????????????????????????????????? | | ?????????????????????????????????????????????????? | | ?????????????????????????????????????????????????? | | ?????????????????????????????????????????????????? | | ?????????????????????????????????????????????????? | | ?????????????????????????????????????????????????? | | ?????????????????????????????????????????????????? | | ?????????????????????????????????????????????????? | | ?????????????????????????????????????????????????? | | ????????????? ???????????????????????????????????? | | ???????????? ??????????????######??????????????? | | ???????????? ######???????#!!! "#?????????????? | | ???????????? #""#??????# "??????????????? | | ???????????# ??????# "#?????????????? | | ????????????#" #????## ""#?????????????# | | ????????????"" #####" ""#???????????? | | ??????????????# g ##" ""#????????????" | | ???????????????# @ #"" #??????????????" | | ?????????????????## #?????????????"" | | ??????????????????#### ##????????????"" | | ?????????????????????### "#???????????? | | ???????????????######## ###???????????" | | ???????????????# !!""" * ##??????????# | | ???????????????#! "#;# " ######???### | | ???????????????#! "# ;#" * """#####X# | | ???????????????#! ### #" | | ???????????????# ! """"#;#?? #"# | | ???????????????########## #??##### * | | ????????????????????????# #??????### | | ????????????????????????# #????????### | | ????????????????????????? ???????????## | | ????????????????????????? ????????????## | | ????????????????????????? ?????????????##" | | ????????????????????????? ??????????????#""" | | ????????????????????????? ??????????????#" | | ????????????????????????????????????????"" | | ????????????????????????????????????????""" | | ????????????????????????????????????????"" | | ????????????????????????????????????????"" | | ????????????????????????????????????????" | | ????????????????????????????????????????"" | | ????????????????????????????????????????? | +----------------------------------------------------+ Best States ------------- Heat Dissipation 35 Energy Generation 18 Energy Capacity 250 Matter Stores 300 Matter Capacity 300 Sight Range 16 Terrain Scan Density 10 Armor Coverage 150 Evasion (%) 40 Recoil Reduction 2 Authchip Count 1 Item Schematics ----------------- None Robot Schematics ------------------ None Fabricated ------------ Nothing Alien Tech Used ----------------- None Achievements -------------- None Challenges ------------ None Game ------ Seed RemoteThermicDetector Manual? 0 Play Time 00:23:18 Cumulative 482.4 hours Start 2023.03.16 @ 18:38:49 End 2023.03.16 @ 18:58:21 Sessions 1 Manual Loads 0 Difficulty Rogue Special Mode None Game No. 522 Rogue 522 Adventurer 0 Explorer 0 Win Type - Total 1 Types 1/0/0/0/0/0/0/0/0 Lore% 61 Gallery% 82 Achievement% 65 Wizard Run 0 Options --------- ASCII 0 Keyboard 0 Movement Mouse Keybinds 0 Fullscreen 2 Font 24/Smallcaps Map View 76x50 Tactical HUD 1 Map Filters NONE Filters NONE Steam 1 RUN: 19cc7f6d-cdaa-4849-b472-8a57c3086750